Cogmind - Beta 14 @@@ ROGUE MODE // 2024.11.26 @ 14:19:09 Player: MarKhan Result: Destroyed by H-66 Slayer with Gauss Rifle Performance ------------- Evolutions (5) 2500 Regions Visited (13) 2600 Robots Destroyed (1) 5 Value Destroyed (7) 7 Prototype IDs (0) 0 Alien Tech Used (0) 0 Bonus (800) 800 TOTAL SCORE: 5912 Bonus ------- Entered DSFs 500 Aligned with FarCom 300 Cogmind --------- Core Integrity 0/1000 Matter 295/300 Energy 98/100 System Corruption 0% Temperature Cool (0) Movement Core (50) Location -5/Factory Parts ------- > --- POWER (11) ------- (None) > --- PROPULSION (2) --- (None) > --- UTILITY (2) ------ (None) > --- WEAPON (2) ------- (None) > --- INVENTORY (5) ---- (None) Peak State ------------ None Favorites ----------- Power None Propulsion None Utility None Weapon None Build | -11 -10 -10 -9 -9 -9 -8 -8 -8 -8 -8 -6 -6 -5 ------- Run | Yrd Mat Min Mat Min Exi Min Mat Sto Rec Scr Fac DSF Fac Slots Evolved 10 | . . . 2 . . . 2 . . . 4 . 2 Power 10 | . . . 2 . . . 2 . . . 4 . 2 Propulsion . | . . . . . . . . . . . . . . Utility . | . . . . . . . . . . . . . . Weapon . | . . . . . . . . . . . . . . Parts Attached . | . . . . . . . . . . . . . . Power . | . . . . . . . . . . . . . . Engine . | . . . . . . . . . . . . . . Core . | . . . . . . . . . . . . . . Reactor . | . . . . . . . . . . . . . . Propulsion . | . . . . . . . . . . . . . . Treads . | . . . . . . . . . . . . . . Leg . | . . . . . . . . . . . . . . Wheel . | . . . . . . . . . . . . . . Hover . | . . . . . . . . . . . . . . Flight . | . . . . . . . . . . . . . . Utility . | . . . . . . . . . . . . . . Device . | . . . . . . . . . . . . . . Storage . | . . . . . . . . . . . . . . Processor . | . . . . . . . . . . . . . . Hackware . | . . . . . . . . . . . . . . Protection . | . . . . . . . . . . . . . . Artifact . | . . . . . . . . . . . . . . Weapon . | . . . . . . . . . . . . . . Energy Gun . | . . . . . . . . . . . . . . Energy Cannon . | . . . . . . . . . . . . . . Ballistic Gun . | . . . . . . . . . . . . . . Ballistic Cannon . | . . . . . . . . . . . . . . Launcher . | . . . . . . . . . . . . . . Special Weapon . | . . . . . . . . . . . . . . Impact Weapon . | . . . . . . . . . . . . . . Slashing Weapon . | . . . . . . . . . . . . . . Piercing Weapon . | . . . . . . . . . . . . . . Special Melee Weapon . | . . . . . . . . . . . . . . Unidentified Prototypes . | . . . . . . . . . . . . . . Parts Lost . | . . . . . . . . . . . . . . Power . | . . . . . . . . . . . . . . Propulsion . | . . . . . . . . . . . . . . Utility . | . . . . . . . . . . . . . . Weapon . | . . . . . . . . . . . . . . Highest Loss Streak . | . . . . . . . . . . . . . . To Critical Strikes . | . . . . . . . . . . . . . . Average Slot Usage (%) . | . . . . . . . . . . . . . . Peak Build Rating . | . . . . . . . . . . . . . . Average Rating . | . . . . . . . . . . . . . . On Entrance . | . . . . . . . . . . . . . . Naked Turns 1658 | . 35 153 45 12 79 25 28 63 320 71 32 122 673 Heaviest Build . | . . . . . . . . . . . . . . Greatest Support 3 | 3 3 3 3 3 3 3 3 3 3 3 3 3 3 Greatest Overweight (x) . | . . . . . . . . . . . . . . Average Overweight (x) . | . . . . . . . . . . . . . . Largest Inventory Capacity 5 | 5 5 5 5 5 5 5 5 5 5 5 5 5 5 Average Capacity 5 | 5 5 5 5 5 5 5 5 5 5 5 5 5 5 Most Carried . | . . . . . . . . . . . . . . Average Carried . | . . . . . . . . . . . . . . Final Capacity 5 | 5 5 5 5 5 5 5 5 5 5 5 5 5 5 Final Carried . | . . . . . . . . . . . . . . Class Distribution -------------------- 100% | Mutant Dominant Class ---------------- Mutant | -10/Materials Mutant | -10/Mines Mutant | -9/Materials Mutant | -9/Mines Mutant | -9/Exiles Mutant | -8/Mines Mutant | -8/Materials Mutant | -8/Storage Mutant | -8/Recycling Mutant | -8/Scraptown Mutant | -6/Factory Mutant | -6/DSF Mutant | -5/Factory Resources | -11 -10 -10 -9 -9 -9 -8 -8 -8 -8 -8 -6 -6 -5 ----------- Run | Yrd Mat Min Mat Min Exi Min Mat Sto Rec Scr Fac DSF Fac Matter Collected 161 | 30 . . . . . . . . . . . 131 . Remotely . | . . . . . . . . . . . . . . Salvage Created 30 | 30 . . . . . . . . . . . . . Parts 3 | 3 . . . . . . . . . . . . . Haulers Intercepted . | . . . . . . . . . . . . . . Recyclers Shooed . | . . . . . . . . . . . . . . Parts Field Recycled . | . . . . . . . . . . . . . . Retrieved Matter . | . . . . . . . . . . . . . . Parts Self-Destructed . | . . . . . . . . . . . . . . Prevented . | . . . . . . . . . . . . . . Kills | -11 -10 -10 -9 -9 -9 -8 -8 -8 -8 -8 -6 -6 -5 ------- Run | Yrd Mat Min Mat Min Exi Min Mat Sto Rec Scr Fac DSF Fac Combat Hostiles Destroyed . | . . . . . . . . . . . . . . Classes Destroyed 1 | 1 . . . . . . . . . . . . . Tunneler 1 | 1 . . . . . . . . . . . . . Best Kill Streak 1 | 1 . . . . . . . . . . . . . Combat Bots Only . | . . . . . . . . . . . . . . Max Kills in Single Turn 1 | 1 . . . . . . . . . . . . . Gunslinging . | . . . . . . . . . . . . . . Exploded . | . . . . . . . . . . . . . . Melee . | . . . . . . . . . . . . . . Uniques/NPCs Destroyed . | . . . . . . . . . . . . . . Combat | -11 -10 -10 -9 -9 -9 -8 -8 -8 -8 -8 -6 -6 -5 -------- Run | Yrd Mat Min Mat Min Exi Min Mat Sto Rec Scr Fac DSF Fac Hostile Shots Fired 163 | . 1 9 . . . . 5 34 7 . . 9 98 Missed 63 | . . 4 . . . . 3 13 5 . . 4 34 Damage Taken 1627 | 5 13 68 . . . . 27 292 85 . . 123 1014 Core 1627 | 5 13 68 . . . . 27 292 85 . . 123 1014 Absorbed by Shields . | . . . . . . . . . . . . . . Core Remaining (%) 74 | 98 . 65 . . . 100 . . . 26 . 85 . Volleys Fired . | . . . . . . . . . . . . . . Largest . | . . . . . . . . . . . . . . Hottest . | . . . . . . . . . . . . . . Shots Fired . | . . . . . . . . . . . . . . Gun . | . . . . . . . . . . . . . . Cannon . | . . . . . . . . . . . . . . Launcher . | . . . . . . . . . . . . . . Special . | . . . . . . . . . . . . . . Kinetic . | . . . . . . . . . . . . . . Thermal . | . . . . . . . . . . . . . . Explosive . | . . . . . . . . . . . . . . Electromagnetic . | . . . . . . . . . . . . . . Robot Hit Streak . | . . . . . . . . . . . . . . Robot Miss Streak . | . . . . . . . . . . . . . . Penetration Max . | . . . . . . . . . . . . . . Secondary Targets . | . . . . . . . . . . . . . . Shots Hit Robots . | . . . . . . . . . . . . . . Core Hits 1 | 1 . . . . . . . . . . . . . Critical Kills . | . . . . . . . . . . . . . . Critical Parts Destroyed . | . . . . . . . . . . . . . . Critical Strikes . | . . . . . . . . . . . . . . Melee Attacks . | . . . . . . . . . . . . . . Impact . | . . . . . . . . . . . . . . Slashing . | . . . . . . . . . . . . . . Piercing . | . . . . . . . . . . . . . . Sneak Attacks . | . . . . . . . . . . . . . . Combat Hostiles . | . . . . . . . . . . . . . . Follow-up Attacks . | . . . . . . . . . . . . . . Damage Inflicted 61 | 10 . 45 . . . . . 4 . . . . 2 Guns . | . . . . . . . . . . . . . . Cannons . | . . . . . . . . . . . . . . Explosions . | . . . . . . . . . . . . . . Melee . | . . . . . . . . . . . . . . Ramming 61 | 10 . 45 . . . . . 4 . . . . 2 Kinetic . | . . . . . . . . . . . . . . Thermal . | . . . . . . . . . . . . . . Explosive . | . . . . . . . . . . . . . . Electromagnetic . | . . . . . . . . . . . . . . Impact . | . . . . . . . . . . . . . . Slashing . | . . . . . . . . . . . . . . Piercing . | . . . . . . . . . . . . . . Highest Corruption . | . . . . . . . . . . . . . . Average Corruption . | . . . . . . . . . . . . . . Corruption Purged . | . . . . . . . . . . . . . . Corruption Blocked . | . . . . . . . . . . . . . . Overload Shots . | . . . . . . . . . . . . . . Overflow Damage . | . . . . . . . . . . . . . . Projectiles . | . . . . . . . . . . . . . . Explosions . | . . . . . . . . . . . . . . Melee . | . . . . . . . . . . . . . . Knockbacks 1 | . . 1 . . . . . . . . . . . Impact 1 | . . 1 . . . . . . . . . . . Kinetic . | . . . . . . . . . . . . . . Secondary . | . . . . . . . . . . . . . . Self-Inflicted Damage 30 | 5 . 22 . . . . . 2 . . . . 1 Shots . | . . . . . . . . . . . . . . Rammed 11 | 1 . 7 . . . . . 1 . . . . 2 Targets Rammed 11 | 1 . 7 . . . . . 1 . . . . 2 Kicked . | . . . . . . . . . . . . . . Crushed . | . . . . . . . . . . . . . . Highest Temperature 14 | . . . . . . . . . . . . . 14 Average Temperature 14 | . . . . . . . . . . . . . 14 Received Heat Transfer 318 | . 9 12 . . . . 9 180 . . . 9 99 Siege Activations . | . . . . . . . . . . . . . . Robots Corrupted . | . . . . . . . . . . . . . . Combat Hostiles . | . . . . . . . . . . . . . . Parts Fried . | . . . . . . . . . . . . . . Impact Corruptions . | . . . . . . . . . . . . . . Robots Melted . | . . . . . . . . . . . . . . Combat Hostiles . | . . . . . . . . . . . . . . Parts Melted . | . . . . . . . . . . . . . . Heat Transferred . | . . . . . . . . . . . . . . Parts Sabotaged . | . . . . . . . . . . . . . . Parts Stolen . | . . . . . . . . . . . . . . Parts Stripped . | . . . . . . . . . . . . . . Power Chain Reactions . | . . . . . . . . . . . . . . Alert | -11 -10 -10 -9 -9 -9 -8 -8 -8 -8 -8 -6 -6 -5 ------- Run | Yrd Mat Min Mat Min Exi Min Mat Sto Rec Scr Fac DSF Fac Peak Influence 360 | 5 18 6 27 10 . . 75 141 189 . . 30 360 Initial 54 | . 3 6 1 10 . . . 31 54 . . . 15 Average 58 | 2 10 6 12 10 . . 23 73 110 . . 1 68 Maximum Alert Level 1 | . . . . . . . . . . . . . 1 Low Security (%) 94 | 100 100 100 100 100 . 100 100 100 100 . 100 100 87 Level 1 5 | . . . . . . . . . . . . . 12 Level 2 . | . . . . . . . . . . . . . . Level 3 . | . . . . . . . . . . . . . . Level 4 . | . . . . . . . . . . . . . . Level 5 . | . . . . . . . . . . . . . . High Security . | . . . . . . . . . . . . . . Max Security . | . . . . . . . . . . . . . . Sterilizations 1 | . . . . . . . . . . . . 1 . Squads Dispatched 4 | . . 1 . . . . . 2 . . . . 1 Investigation 1 | . . 1 . . . . . . . . . . . Extermination . | . . . . . . . . . . . . . . Reinforcement 3 | . . . . . . . . 2 . . . . 1 Assault . | . . . . . . . . . . . . . . Garrison . | . . . . . . . . . . . . . . Intercept . | . . . . . . . . . . . . . . Searches Triggered . | . . . . . . . . . . . . . . Construction Impeded . | . . . . . . . . . . . . . . Haulers Reinforced . | . . . . . . . . . . . . . . Active Scanning Responses . | . . . . . . . . . . . . . . Cargo Convoy Interrupts . | . . . . . . . . . . . . . . Stealth | -11 -10 -10 -9 -9 -9 -8 -8 -8 -8 -8 -6 -6 -5 --------- Run | Yrd Mat Min Mat Min Exi Min Mat Sto Rec Scr Fac DSF Fac Distress Signals 3 | . 2 . . . . . . . . . . . 1 Communications Jammed . | . . . . . . . . . . . . . . Distress Signals . | . . . . . . . . . . . . . . Times Spotted 63 | . 4 6 . . . . 2 17 5 . . 6 23 Peak Tracking Total 14 | . 5 3 . . . . 6 14 5 . . 5 7 Tactical Retreats 9 | . . . . . . . 1 1 . . . . 7 Traps | -11 -10 -10 -9 -9 -9 -8 -8 -8 -8 -8 -6 -6 -5 ------- Run | Yrd Mat Min Mat Min Exi Min Mat Sto Rec Scr Fac DSF Fac Traps Triggered 1 | . . . . . . . . 1 . . . . . Indirectly . | . . . . . . . . . . . . . . Trap Hack Attempts . | . . . . . . . . . . . . . . Triggered . | . . . . . . . . . . . . . . Disarmed . | . . . . . . . . . . . . . . Reprogrammed . | . . . . . . . . . . . . . . Reused . | . . . . . . . . . . . . . . Traps Extracted . | . . . . . . . . . . . . . . Installed . | . . . . . . . . . . . . . . Triggered . | . . . . . . . . . . . . . . Machines | -11 -10 -10 -9 -9 -9 -8 -8 -8 -8 -8 -6 -6 -5 ---------- Run | Yrd Mat Min Mat Min Exi Min Mat Sto Rec Scr Fac DSF Fac Machines Disabled . | . . . . . . . . . . . . . . Max in Single Turn . | . . . . . . . . . . . . . . Machines Repaired . | . . . . . . . . . . . . . . Machines Dismantled . | . . . . . . . . . . . . . . Machines Sabotaged . | . . . . . . . . . . . . . . Overloaded Fab Kills . | . . . . . . . . . . . . . . Hacking | -11 -10 -10 -9 -9 -9 -8 -8 -8 -8 -8 -6 -6 -5 --------- Run | Yrd Mat Min Mat Min Exi Min Mat Sto Rec Scr Fac DSF Fac Machines Accessed 15 | . . 2 1 . . . . 1 8 1 1 . 1 Terminals 9 | . . 1 1 . . . . 1 4 . 1 . 1 Fabricators . | . . . . . . . . . . . . . . Repair Stations . | . . . . . . . . . . . . . . Recycling Units 4 | . . . . . . . . . 4 . . . . Scanalyzers . | . . . . . . . . . . . . . . Garrison Access . | . . . . . . . . . . . . . . Total Hacks 44 | . . 4 5 . . . . 4 19 10 1 . 1 Successful 32 | . . 1 3 . . . . 2 14 10 1 . 1 Failed 12 | . . 3 2 . . . . 2 5 . . . . Catastrophic 3 | . . 1 1 . . . . . 1 . . . . Database Lockouts . | . . . . . . . . . . . . . . Manual 28 | . . . 4 . . . . 5 19 . . . . Terminals 29 | . . 3 5 . . . . 4 15 . 1 . 1 Fabricators . | . . . . . . . . . . . . . . Repair Stations . | . . . . . . . . . . . . . . Recycling Units 4 | . . . . . . . . . 4 . . . . Scanalyzers . | . . . . . . . . . . . . . . Garrison Access . | . . . . . . . . . . . . . . Terminal Hacks 17 | . . 1 1 . . . . 1 2 10 1 . 1 Record 10 | . . . . . . . . . . 10 . . . Open Door 1 | . . 1 . . . . . . . . . . . Open DSF 2 | . . . . . . . . . . . 1 . 1 Branch Access Points 1 | . . . 1 . . . . . . . . . . Terminal Index 1 | . . . . . . . . . 1 . . . . Alert Level 1 | . . . . . . . . . 1 . . . . Zone Layout 1 | . . . . . . . . 1 . . . . . Fabricator Hacks . | . . . . . . . . . . . . . . Repair Station Hacks . | . . . . . . . . . . . . . . Recycling Unit Hacks . | . . . . . . . . . . . . . . Scanalyzer . | . . . . . . . . . . . . . . Garrison Access Hacks . | . . . . . . . . . . . . . . Unauthorized Hacks 15 | . . . 2 . . . . 1 12 . . . . Terminals 11 | . . . 2 . . . . 1 8 . . . . Assimilate 1 | . . . . . . . . 1 . . . . . Botnet 5 | . . . 1 . . . . . 4 . . . . Skim 5 | . . . 1 . . . . . 4 . . . . Fabricators . | . . . . . . . . . . . . . . Repair Stations . | . . . . . . . . . . . . . . Recycling Units 4 | . . . . . . . . . 4 . . . . Tunnel 4 | . . . . . . . . . 4 . . . . Scanalyzers . | . . . . . . . . . . . . . . Garrison Access . | . . . . . . . . . . . . . . Data Cores Recovered . | . . . . . . . . . . . . . . Used . | . . . . . . . . . . . . . . Hacking Detections 8 | . . 1 1 . . . . 2 4 . . . . Full Trace Events 1 | . . 1 . . . . . . . . . . . Feedback Events . | . . . . . . . . . . . . . . Feedback Blocked . | . . . . . . . . . . . . . . Robot Schematics Acquired . | . . . . . . . . . . . . . . Robots Built . | . . . . . . . . . . . . . . Authchips . | . . . . . . . . . . . . . . Time . | . . . . . . . . . . . . . . Total Robot Build Rating . | . . . . . . . . . . . . . . Part Schematics Acquired . | . . . . . . . . . . . . . . Parts Built . | . . . . . . . . . . . . . . Authchips . | . . . . . . . . . . . . . . Time . | . . . . . . . . . . . . . . Total Part Build Rating . | . . . . . . . . . . . . . . Parts Repaired . | . . . . . . . . . . . . . . Time . | . . . . . . . . . . . . . . Parts Recycled . | . . . . . . . . . . . . . . Recycled Matter . | . . . . . . . . . . . . . . Retrieved Matter . | . . . . . . . . . . . . . . Retrieved Components . | . . . . . . . . . . . . . . Parts Scanalyzed . | . . . . . . . . . . . . . . Part Schematics Acquired . | . . . . . . . . . . . . . . Parts Damaged . | . . . . . . . . . . . . . . Bothacking | -11 -10 -10 -9 -9 -9 -8 -8 -8 -8 -8 -6 -6 -5 ------------ Run | Yrd Mat Min Mat Min Exi Min Mat Sto Rec Scr Fac DSF Fac Used RIF Installer . | . . . . . . . . . . . . . . Robots Hacked . | . . . . . . . . . . . . . . Non-combat . | . . . . . . . . . . . . . . Combat . | . . . . . . . . . . . . . . Robot Hacks Applied . | . . . . . . . . . . . . . . Relay Couplers Released . | . . . . . . . . . . . . . . Fabnet Peak Effective % . | . . . . . . . . . . . . . . Robots Rewired . | . . . . . . . . . . . . . . Allies Hacked . | . . . . . . . . . . . . . . Hacks Repelled . | . . . . . . . . . . . . . . Allies | -11 -10 -10 -9 -9 -9 -8 -8 -8 -8 -8 -6 -6 -5 -------- Run | Yrd Mat Min Mat Min Exi Min Mat Sto Rec Scr Fac DSF Fac Total Allies 2 | . . 2 . . . . . . . . . . . Largest Group 2 | . . 2 . . . . . . . . . . . Highest-Rated Group 38 | . . 38 . . . . . . . . . . . Highest-Rated Ally 31 | . . 31 . . . . . . . . . . . Total Orders . | . . . . . . . . . . . . . . Ally Attacks 2 | . . 2 . . . . . . . . . . . Total Damage 42 | . . 42 . . . . . . . . . . . Kills . | . . . . . . . . . . . . . . Allies Corrupted . | . . . . . . . . . . . . . . Allies Melted . | . . . . . . . . . . . . . . Intel | -11 -10 -10 -9 -9 -9 -8 -8 -8 -8 -8 -6 -6 -5 ------- Run | Yrd Mat Min Mat Min Exi Min Mat Sto Rec Scr Fac DSF Fac Robot Analysis Total . | . . . . . . . . . . . . . . Derelict Logs Recovered 2 | . . 2 . . . . . . . . . . . Drone Launches . | . . . . . . . . . . . . . . Drone Recoveries . | . . . . . . . . . . . . . . Exploration | -11 -10 -10 -9 -9 -9 -8 -8 -8 -8 -8 -6 -6 -5 ------------- Run | Yrd Mat Min Mat Min Exi Min Mat Sto Rec Scr Fac DSF Fac Turns Passed 1668 | 10 35 153 45 12 79 25 28 63 320 71 32 122 673 Spaces Moved 2512 | 18 70 235 89 24 157 49 56 124 589 142 64 139 756 Core 2512 | 18 70 235 89 24 157 49 56 124 589 142 64 139 756 Treads . | . . . . . . . . . . . . . . Legs . | . . . . . . . . . . . . . . Wheels . | . . . . . . . . . . . . . . Hover . | . . . . . . . . . . . . . . Flight . | . . . . . . . . . . . . . . Fastest Speed 50 | 50 50 50 50 50 50 50 50 50 50 50 50 50 50 Average Speed 50 | 50 50 50 50 50 50 50 50 50 50 50 50 50 50 Slowest Speed 50 | 50 50 50 50 50 50 50 50 50 50 50 50 50 50 Overloaded Moves . | . . . . . . . . . . . . . . Propulsion Burnouts . | . . . . . . . . . . . . . . Robots Hopped . | . . . . . . . . . . . . . . Cave-ins Triggered . | . . . . . . . . . . . . . . Exploration Rate (%) 33 | 4 24 68 14 15 55 26 7 43 78 17 3 88 25 Regions Visited 13 Branch Regions 7 Pre-discovered Areas 5 | . . 1 . . . . . . 4 . . . . Known Exits Taken 3 | . . . 1 . . . 1 . . . 1 . . Unknown Exits Taken 9 | 1 1 1 . 1 1 1 . 1 1 1 . . . Scrap Searched . | . . . . . . . . . . . . . . Spaces Dug . | . . . . . . . . . . . . . . Terrain Destroyed . | . . . . . . . . . . . . . . Melee . | . . . . . . . . . . . . . . Projectile . | . . . . . . . . . . . . . . AOE . | . . . . . . . . . . . . . . Terrain Rammed . | . . . . . . . . . . . . . . Walls Destroyed . | . . . . . . . . . . . . . . Machines Disabled . | . . . . . . . . . . . . . . Actions | -11 -10 -10 -9 -9 -9 -8 -8 -8 -8 -8 -6 -6 -5 --------- Run | Yrd Mat Min Mat Min Exi Min Mat Sto Rec Scr Fac DSF Fac Total 2908 | 18 69 269 88 23 156 48 55 124 613 141 63 190 1051 Wait 398 | . . 28 . . . . . . 25 . . 52 293 Move 2499 | 17 69 234 88 23 156 48 55 123 588 141 63 138 756 Hop . | . . . . . . . . . . . . . . Pick Up . | . . . . . . . . . . . . . . Fast Attach . | . . . . . . . . . . . . . . Attach . | . . . . . . . . . . . . . . Detach . | . . . . . . . . . . . . . . Swap . | . . . . . . . . . . . . . . Drop . | . . . . . . . . . . . . . . Fire . | . . . . . . . . . . . . . . Melee . | . . . . . . . . . . . . . . Ram 11 | 1 . 7 . . . . . 1 . . . . 2 Kick . | . . . . . . . . . . . . . . Crush . | . . . . . . . . . . . . . . Escape Stasis . | . . . . . . . . . . . . . . Rewire . | . . . . . . . . . . . . . . Trap . | . . . . . . . . . . . . . . Miscellaneous . | . . . . . . . . . . . . . . Route ------- -11/Scrapyard -10/Materials -10/Mines -9/Materials (discovered 2 exits: *Min x2) -9/Mines -9/Exiles -8/Mines -8/Materials -8/Storage -8/Recycling -8/Scraptown -6/Factory -6/DSF -5/Factory History --------- Turn | Location | Event 4 | -11/Scrapyard | Discovered new exit (range 14) 11 | -11/Scrapyard | Entered Materials 40 | -10/Materials | Discovered new exit (range 14) 46 | -10/Materials | Entered Mines 51 | -10/Mines | Learned location of Zion (-7) 66 | -10/Mines | Found a hidden stash of uninstalled traps 125 | -10/Mines | Met a Derelict shopkeep closing up shop 190 | -10/Mines | Discovered new exit (range 12) 199 | -10/Mines | Entered Materials 199 | -9/Materials | Evolved 2 slots: Power x2 229 | -9/Materials | Identified exit to Mines 244 | -9/Materials | Entered Mines 254 | -9/Mines | Deemed a non-threat by the Exiles lab entrance 254 | -9/Mines | Discovered new exit (range 5) 256 | -9/Mines | Entered Exiles 269 | -9/Exiles | Met 8R-AWN 278 | -9/Exiles | Met EX-HEX 292 | -9/Exiles | Met EX-BIN 298 | -9/Exiles | Aligned with FarCom system 298 | -9/Exiles | Given EX-Vault access code 305 | -9/Exiles | Build established: Mutant 312 | -9/Exiles | Met EX-DEC 329 | -9/Exiles | Discovered new exit (range 14) 335 | -9/Exiles | Entered Mines 351 | -8/Mines | Discovered new exit (range 9) 360 | -8/Mines | Entered Materials 360 | -8/Materials | Evolved 2 slots: Power x2 361 | -8/Materials | Identified exit to Storage 388 | -8/Materials | Entered Storage 441 | -8/Storage | Core integrity fell below 50% 449 | -8/Storage | Used back door to open Recycling access 449 | -8/Storage | Discovered new exit (range 5) 451 | -8/Storage | Entered Recycling 629 | -8/Recycling | Scanned before Scraplab entrance 765 | -8/Recycling | Entered Scraplab 769 | -8/Recycling | Discovered new exit (range 3) 771 | -8/Recycling | Entered Scraptown 796 | -8/Scraptown | Visited CR-KLE's Repair Center 811 | -8/Scraptown | Visited Cyclists 817 | -8/Scraptown | Visited Assassins FH 837 | -8/Scraptown | Discovered new exit (range 7) 842 | -8/Scraptown | Entered Factory 842 | -6/Factory | Evolved 4 slots: Power x4 874 | -6/Factory | Identified exit to DSF 874 | -6/Factory | Entered DSF 874 | -6/DSF | Encountered a pitched battle between 0b10 and Warlord forces 970 | -6/DSF | Sterilization system engaged 972 | -6/DSF | Lost 15 allies 975 | -6/DSF | Spotted Executioner 988 | -6/DSF | Discovered new exit (range 16) 990 | -6/DSF | Ambient heat levels rising (+10) 996 | -6/DSF | Entered Factory 996 | -5/Factory | Evolved 2 slots: Power x2 1558 | -5/Factory | Core integrity fell below 50% 1579 | -5/Factory | Core integrity fell below 20% 1669 | -5/Factory | Destroyed by H-66 Slayer with Gauss Rifle Last Messages --------------- 01521_ ALERT: Hostiles spotted, dispatching reinforcements to Terminal F005. 01536_ U-05 Engineer works on Construction Platform. 01553_ Penetrated by Slug. 01553_ Slug penetrates Door. 01555_ Penetrated by Slug. 01560_ Slug penetrates Wall. 01563_ Penetrated by Slug. 01563_ Slug penetrates Wall. 01566_ Penetrated by Slug. 01578_ Slug penetrates Wall. 01591_ Slammed into T-07 Excavator. 01616_ K-01 Serf cleans the Fusion Modulator. 01618_ K-01 Serf cleans the Garrison Access. 01620_ K-01 Serf cleans the Fusion Modulator. 01657_ Slug penetrates Wall. 01657_ Penetrated by Slug. 01668_ Drone sends a signal. 01669_ Penetrated by Slug. Map ----- +----------------------------------------------------+ | ?????????????????????????????????????????????????? | | ?????????????????????????????????????????????????? | | ?????????????????????????????????????????????????? | | ?????????????????????????????????????????????????? | | ?????????????????????????????????????????????????? | | ?????????????????????????????????????????????????? | | ?????????????????????????????????????????????????? | | ?????????????????????????????????????????????????? | | ?????????????????????????????????????????????????? | | ?????????????????????????????????????????????????? | | ????????????????????????? ???????????????????????? | | ?????????????????????#### ###????????????????????? | | ????????????????????? +????????????????????? | | ????????????????????? #????????????????????? | | ????????????????????? +????????????????????? | | ?????????????????????? #????????????????????? | | ?????????????????????? #????????????????????? | | ??????????????????????# #????????????????????? | | ??????????????????????# #????????????????????? | | ??????????????????????# #????????????????????? | | ??????????????????????# #????????????????????? | | ??????????????????????# #????????????????????? | | ??????????????????????# #????????####????????? | | ??????????????????????# #?????? / ?????????? | | ??????????????????????# #???? n#???????????? | | ??????????????????????# @ #?? #???????????? | | ??????????????????????# # #???????????? | | ??????????????????????# + #???????????? | | ??????????????????????# hu # / ??????? | | ??????????????????????# w#?? # ??????? | | ????????????########### #???? #???????????? | | ????????????# # #?????? +???????????? | | ????????????# """" # ##############???????? | | ????????????# ""R" # # * #???????? | | ????????????# "" " + + """ #???????? | | ????????????# C # # """ =! #???????? | | ????????????+ | # # """ !! #???????? | | ????????????# # # ????????? | | ????????????# ] # w###############??????? | | ????????????########### ######### #??????? | | ??????????????????????# ## #??????? | | ??????????????????????# ## #??????? | | ??????????????????????# ## #??????? | | ??????????????????????# ####+###??????? | | ??????????????????????# #??# #????????? | | ??????????????????????######## #??# #????????? | | ?????????????????????????????# #### ###??????? | | ?????????????????????????????# #????" " | | ?????????????????????????????# #??""" " | | ??????????????????????????# "" """ """ # """ " | +----------------------------------------------------+ Best States ------------- Heat Dissipation 40 Energy Generation 5 Energy Capacity 100 Matter Stores 295 Matter Capacity 300 Sight Range 16 Terrain Scan Density 10 Evasion (%) 50 Item Schematics ----------------- None Robot Schematics ------------------ None Fabricated ------------ Nothing Alien Tech Used ----------------- None Achievements -------------- None Challenges ------------ None Game ------ Seed AccelerationRingCalibrator Manual? 0 Play Time 00:24:30 Cumulative 143.7 hours Start 2024.11.26 @ 13:58:51 End 2024.11.26 @ 14:19:09 Sessions 1 Manual Loads 0 Difficulty Rogue Special Mode None Game No. 136 Rogue 136 Adventurer 0 Explorer 0 Win Type - Total 3 Types 3/0/0/0/0/0/0/0/0 Lore% 54 Gallery% 58 Achievement% 55 Wizard Run 0 Options --------- Layout 1 ASCII 0 Keyboard 1 Movement Arrows Keybinds 0 Fullscreen 0 Font 20/Smallcaps Map View 50x35 Zoom Use 0% Tactical HUD 1 Map Filters NONE Filters NONE Steam 1 RUN: 66fd219e-4202-45a6-b87e-abde12ee199e